Cogmind - Beta 15 @@@ ROGUE MODE // 2025.05.16 @ 13:32:03 Player: Miles Result: Destroyed by S-10 Pest with Light Assault Rifle Performance ------------- Evolutions (2) 1000 Regions Visited (4) 800 Robots Destroyed (44) 220 Value Destroyed (1497) 1497 Prototype IDs (1) 20 Alien Tech Used (0) 0 Bonus (200) 200 TOTAL SCORE: 3737 Bonus ------- Entered Garrisons 200 Cogmind --------- Core Integrity 0/550 Matter 214/300 Energy 158/160 System Corruption 5% Temperature Cool (1) Movement Walking (190) Ox1 Location -8/Garrison Parts ------- > --- POWER (2) -------- Light Nuclear Core > --- PROPULSION (5) --- Aluminum Leg > --- UTILITY (2) ------ Small Storage Unit Advanced Weight Redist. System > --- WEAPON (2) ------- Heavy Hammer > --- INVENTORY (8) ---- Improved Heat Sink ECM Suite Hacking Suite Peak State ------------ > --- POWER ------------ Nuclear Core Light Nuclear Core > --- PROPULSION ------- Wheel Wheel Flight Unit VTOL Module > --- UTILITY ---------- Small Storage Unit Advanced Weight Redist. System > --- WEAPON ----------- Shotgun Shotgun > --- INVENTORY -------- Improved Ion Engine Light Nuclear Core ECM Suite Hacking Suite Shotgun Gauss Rifle Shock Bomb Launcher Heavy Hammer [Rating: 21] Favorites ----------- Power Ion Engine Engine Ion Engine Power Core Nuclear Core Propulsion Wheel Leg Aluminum Leg Wheel Wheel Flight Unit Flight Unit Utility Small Storage Unit Device Improved Terrain Scanner Storage Small Storage Unit Processor Targeting Computer Weapon Assault Rifle Energy Cannon Beam Cannon Ballistic Gun Assault Rifle Launcher Shock Bomb Launcher Impact Weapon Heavy Hammer Build | -11 -10 -9 -8 -8 ------- Run | Yrd Mat Mat Mat Gar Slots Evolved 4 | . . 2 2 . Power 1 | . . . 1 . Propulsion 3 | . . 2 1 . Utility . | . . . . . Weapon . | . . . . . Parts Attached 44 | 9 1 17 7 10 Power 11 | 1 1 1 5 3 Engine 6 | 1 1 1 3 . Core 5 | . . . 2 3 Reactor . | . . . . . Propulsion 17 | 3 . 9 1 4 Treads . | . . . . . Leg 4 | . . . . 4 Wheel 6 | 3 . 2 1 . Hover . | . . . . . Flight 7 | . . 7 . . Utility 5 | 3 . 2 . . Device 3 | 2 . 1 . . Storage 1 | 1 . . . . Processor 1 | . . 1 . . Hackware . | . . . . . Protection . | . . . . . Artifact . | . . . . . Weapon 11 | 2 . 5 1 3 Energy Gun . | . . . . . Energy Cannon 2 | . . 2 . . Ballistic Gun 7 | 2 . 2 1 2 Ballistic Cannon . | . . . . . Launcher 1 | . . . . 1 Special Weapon . | . . . . . Impact Weapon 1 | . . 1 . . Slashing Weapon . | . . . . . Piercing Weapon . | . . . . . Special Melee Weapon . | . . . . . Unidentified Prototypes 1 | . . 1 . . Corrupted Parts 1 | . . . . 1 System Corruption 4 | . . . . 4 Parts Lost 26 | . 2 4 4 16 Power 7 | . . 1 1 5 Propulsion 10 | . . 1 3 6 Utility 1 | . . 1 . . Weapon 8 | . 2 1 . 5 Highest Loss Streak 5 | . 2 2 2 5 To Critical Strikes . | . . . . . Average Backups 6 | 3 8 6 7 6 Power 1 | 1 2 1 1 1 Propulsion 2 | 1 5 3 1 . Utility 1 | . 1 1 1 2 Weapon 1 | . . . 2 2 Tool/Special . | . . . . . Unused Backups 7 | 1 1 2 1 2 Power . | . . . . . Propulsion 3 | 1 . 1 1 . Utility 3 | . 1 . . 2 Weapon 1 | . . 1 . . Tool/Special . | . . . . . Average Slot Usage (%) 81 | . 95 90 85 57 Engine 7 | . 14 10 6 . Core 5 | . . . 10 13 Wheel 14 | . 28 17 6 4 Flight 12 | . . 25 24 1 Device 10 | . 14 8 9 9 Storage 10 | . 14 11 9 9 Energy Cannon 1 | . . 4 . . Ballistic Gun 14 | . 23 5 17 13 Impact Weapon 1 | . . 4 . . Peak Build Rating 21 | 10 10 15 21 21 Average Rating 12 | 6 9 10 18 16 On Entrance 10 | . 10 7 15 21 Naked Turns . | . . . . . Heaviest Build 27 | 13 15 16 23 27 Greatest Support 40 | 26 20 40 29 29 Greatest Overweight (x) 5 | . . 3 1 5 Average Overweight (x) . | . . . . . Largest Inventory Capacity 8 | 8 8 8 8 8 Average Capacity 7 | 7 8 8 8 8 Most Carried 8 | 8 8 8 8 8 Average Carried 6 | 3 7 6 7 6 Final Capacity 8 | 8 8 8 8 8 Final Carried 8 | 8 8 8 8 3 Class Distribution -------------------- 70% | Mutant 14% | Scavenger-Mutant 13% | Scavenger-Sprinter Dominant Class ---------------- Mutant | -10/Materials Scavenger-Sprinter | -9/Materials Mutant | -8/Materials Mutant | -8/Garrison Resources | -11 -10 -9 -8 -8 ----------- Run | Yrd Mat Mat Mat Gar Matter Collected 1139 | 368 58 227 289 197 Remotely . | . . . . . Salvage Created 1652 | 212 117 405 313 605 Parts 87 | 20 7 19 15 26 Haulers Intercepted 1 | . . 1 . . Recyclers Shooed 2 | 1 . . 1 . Parts Field Recycled . | . . . . . Retrieved Matter . | . . . . . Parts Self-Destructed . | . . . . . Prevented . | . . . . . Kills | -11 -10 -9 -8 -8 ------- Run | Yrd Mat Mat Mat Gar Combat Hostiles Destroyed 33 | . 3 11 7 12 Guns 17 | . 3 1 7 6 Cannons 8 | . . 8 . . AOE 4 | . . . . 4 Classes Destroyed 10 | 3 1 4 1 1 Worker 2 | 2 . . . . Tunneler 5 | 5 . . . . Hauler 1 | . . 1 . . Recycler 2 | 1 . 1 . . Watcher 1 | . . 1 . . Swarmer 7 | . . 7 . . Grunt 19 | . 3 2 5 9 Brawler 1 | . . . . 1 Sentry 5 | . . 2 1 2 Hunter 1 | . . . 1 . Best Kill Streak 5 | 4 2 5 5 5 Combat Bots Only 5 | . 2 5 5 5 Max Kills in Single Turn 2 | 1 1 1 1 2 Gunslinging . | . . . . . Exploded 2 | . . . . 2 Melee . | . . . . . Uniques/NPCs Destroyed . | . . . . . Combat | -11 -10 -9 -8 -8 -------- Run | Yrd Mat Mat Mat Gar Hostile Shots Fired 294 | . 29 63 34 168 Missed 79 | . 7 26 7 39 Hits 215 | . 22 37 27 129 Projectile 215 | . 22 37 27 129 Critical Strikes 6 | . 1 2 . 3 Part Disruptions 1 | . 1 . . . Damage Taken 2857 | . 363 428 386 1680 Core 749 | . 96 99 116 438 Absorbed by Shields 34 | . . . . 34 Core Remaining (%) 78 | 100 61 75 . . Volleys Fired 108 | 13 22 20 23 30 Largest 2 | 2 2 2 2 2 Hottest 80 | 40 40 80 46 64 Shots Fired 190 | 26 36 32 46 50 Gun 157 | 26 36 12 46 37 Cannon 20 | . . 20 . . Launcher 13 | . . . . 13 Special . | . . . . . Kinetic 157 | 26 36 12 46 37 Thermal 20 | . . 20 . . Explosive . | . . . . . Electromagnetic 13 | . . . . 13 Robot Hit Streak 11 | 7 7 6 11 8 Robot Miss Streak 5 | 1 2 2 5 3 Penetration Max . | . . . . . Secondary Targets 1 | . . . . 1 Max Gunslinging Chain 1 | . . . . 1 Shots Hit Robots 144 | 17 25 31 38 33 Core Hits 76 | 9 8 11 25 23 Critical Kills . | . . . . . Critical Parts Destroyed 2 | . . 2 . . Critical Strikes 4 | . . 4 . . Smash 4 | . . 4 . . Melee Attacks 16 | . . 16 . . Impact 16 | . . 16 . . Slashing . | . . . . . Piercing . | . . . . . Sneak Attacks 2 | . . 2 . . Combat Hostiles . | . . . . . Follow-up Attacks . | . . . . . Damage Inflicted 3027 | 217 323 911 582 994 Guns 1614 | 217 310 49 582 456 Cannons 282 | . . 282 . . Explosions 538 | . . . . 538 Melee 574 | . . 574 . . Ramming 19 | . 13 6 . . Kinetic 1614 | 217 310 49 582 456 Thermal 308 | . . 282 . 26 Explosive . | . . . . . Electromagnetic 512 | . . . . 512 Impact 574 | . . 574 . . Slashing . | . . . . . Piercing . | . . . . . Highest Corruption 5 | . . . . 5 Average Corruption 3 | . . . . 3 Corruption Purged . | . . . . . Corruption Blocked . | . . . . . Effects 4 | . . . . 4 Message Errors 1 | . . . . 1 Energy Discharges 1 | . . . . 1 Parts Rejected 1 | . . . . 1 Data Loss (minor) 1 | . . . . 1 Overload Shots . | . . . . . Overflow Damage 180 | . . 180 . . Projectiles . | . . . . . Explosions . | . . . . . Melee 180 | . . 180 . . Knockbacks 1 | . 1 . . . Impact 1 | . 1 . . . Kinetic . | . . . . . Secondary . | . . . . . Self-Inflicted Damage 86 | . 6 2 . 78 Shots 7 | . . . . 7 Rammed 5 | . 2 2 1 . Targets Rammed 5 | . 2 2 1 . Kicked . | . . . . . Crushed . | . . . . . Highest Temperature 139 | . 18 93 85 139 Average Temperature 35 | . 6 31 29 52 Received Heat Transfer 1192 | . 189 129 171 703 Siege Activations . | . . . . . Martial Activations . | . . . . . Shielding Activations . | . . . . . Robots Disrupted . | . . . . . Combat Hostiles . | . . . . . Robots Corrupted 4 | . . 2 . 2 Combat Hostiles 4 | . . 2 . 2 Parts Fried 6 | . . 2 . 4 Impact Corruptions 5 | . . 5 . . Robots Melted . | . . . . . Combat Hostiles . | . . . . . Parts Melted 1 | . . 1 . . Heat Transferred 642 | . . 592 . 50 Parts Sabotaged . | . . . . . Parts Stolen . | . . . . . Parts Stripped . | . . . . . Power Chain Reactions 1 | . . . . 1 Alert | -11 -10 -9 -8 -8 ------- Run | Yrd Mat Mat Mat Gar Maximum Alert Level 1 | . . 1 . 1 Low Security (%) 82 | 100 100 93 100 37 Level 1 17 | . . 6 . 62 Level 2 . | . . . . . Level 3 . | . . . . . Level 4 . | . . . . . Level 5 . | . . . . . High Security . | . . . . . Max Security . | . . . . . Peak Influence 291 | 15 40 207 156 291 Initial 94 | . 3 1 81 94 Average 108 | 2 5 127 106 220 Influence Increases 1112 | 40 91 399 255 327 Destroy 0b10 Robot/C 660 | . 60 220 140 240 Destroy 0b10 Robot/NC 55 | 40 . 15 . . Destroy Leader 104 | . 10 44 40 10 Successful Hack 36 | . 6 30 . . Anti-Garrison Action 50 | . . . . 50 Destroy Structure 27 | . . . . 27 Partial Spotted 60 | . . 45 15 . Lose Combat Pursuer 120 | . 15 45 60 . Influence Decreases 851 | 35 91 209 304 212 Entered New Map 172 | . 2 4 114 52 Time Decay 429 | 35 79 165 150 . Lost Part 250 | . 10 40 40 160 Squads Dispatched 2 | . 1 . 1 . Investigation 1 | . . . 1 . Extermination . | . . . . . Reinforcement 1 | . 1 . . . Assault . | . . . . . Garrison . | . . . . . Intercept . | . . . . . Searches Triggered . | . . . . . Construction Impeded . | . . . . . Haulers Reinforced . | . . . . . Active Scanning Responses . | . . . . . Cargo Convoy Interrupts . | . . . . . Stealth | -11 -10 -9 -8 -8 --------- Run | Yrd Mat Mat Mat Gar Distress Signals 2 | . . 1 1 . Communications Jammed . | . . . . . Distress Signals . | . . . . . Times Spotted 58 | . 11 17 11 19 Peak Tracking Total 6 | . 3 6 5 6 Tactical Retreats 6 | . 1 2 3 . Traps | -11 -10 -9 -8 -8 ------- Run | Yrd Mat Mat Mat Gar Traps Triggered 7 | . 2 . . 5 Indirectly 1 | . . . . 1 Trap Hack Attempts . | . . . . . Triggered . | . . . . . Disarmed . | . . . . . Reprogrammed . | . . . . . Reused . | . . . . . Traps Extracted . | . . . . . Installed . | . . . . . Triggered . | . . . . . Machines | -11 -10 -9 -8 -8 ---------- Run | Yrd Mat Mat Mat Gar Machines Disabled 1 | . . . . 1 Max in Single Turn 1 | . . . . 1 Garrison Relay 1 | . . . . 1 Machines Repaired . | . . . . . Machines Dismantled . | . . . . . Machines Sabotaged . | . . . . . Overloaded Fab Kills . | . . . . . Hacking | -11 -10 -9 -8 -8 --------- Run | Yrd Mat Mat Mat Gar Machines Accessed 5 | . 1 1 3 . Terminals 3 | . 1 1 1 . Fabricators . | . . . . . Repair Stations . | . . . . . Recycling Units . | . . . . . Scanalyzers 1 | . . . 1 . Garrison Access 1 | . . . 1 . Total Hacks 10 | . 2 2 6 . Successful 8 | . 1 2 5 . Failed 2 | . 1 . 1 . Catastrophic . | . . . . . Database Lockouts . | . . . . . Manual 6 | . 3 2 1 . Terminals 5 | . 2 2 1 . Fabricators . | . . . . . Repair Stations . | . . . . . Recycling Units . | . . . . . Scanalyzers 4 | . . . 4 . Garrison Access 1 | . . . 1 . Terminal Hacks 2 | . . 2 . . Branch Access Points 1 | . . 1 . . Zone Layout 1 | . . 1 . . Fabricator Hacks . | . . . . . Repair Station Hacks . | . . . . . Recycling Unit Hacks . | . . . . . Scanalyzer 4 | . . . 4 . Insert Component 2 | . . . 2 . Analyze 2 | . . . 2 . Garrison Access Hacks 1 | . . . 1 . Unlock Access 1 | . . . 1 . Unauthorized Hacks 1 | . 1 . . . Terminals 1 | . 1 . . . Assimilate 1 | . 1 . . . Fabricators . | . . . . . Repair Stations . | . . . . . Recycling Units . | . . . . . Scanalyzers . | . . . . . Garrison Access . | . . . . . Data Cores Recovered . | . . . . . Used . | . . . . . Hacking Detections 4 | . 1 1 2 . Full Trace Events 1 | . . . 1 . Feedback Events . | . . . . . Feedback Blocked . | . . . . . Robot Schematics Acquired . | . . . . . Robots Built . | . . . . . Authchips . | . . . . . Time . | . . . . . Total Robot Build Rating . | . . . . . Part Schematics Acquired 1 | . . . 1 . Parts Built . | . . . . . Authchips . | . . . . . Time . | . . . . . Total Part Build Rating . | . . . . . Parts Repaired . | . . . . . Time . | . . . . . Parts Recycled . | . . . . . Recycled Matter . | . . . . . Retrieved Matter . | . . . . . Retrieved Components . | . . . . . Parts Scanalyzed 1 | . . . 1 . Part Schematics Acquired 1 | . . . 1 . Parts Damaged . | . . . . . Bothacking | -11 -10 -9 -8 -8 ------------ Run | Yrd Mat Mat Mat Gar Used RIF Installer . | . . . . . Robots Hacked . | . . . . . Non-combat . | . . . . . Combat . | . . . . . Robot Hacks Applied . | . . . . . Relay Couplers Released 4 | . . . . 4 Machine Destruction 4 | . . . . 4 Fabnet Peak Effective % . | . . . . . Robots Rewired . | . . . . . Allies Hacked . | . . . . . Hacks Repelled . | . . . . . Allies | -11 -10 -9 -8 -8 -------- Run | Yrd Mat Mat Mat Gar Total Allies . | . . . . . Largest Group . | . . . . . Highest-Rated Group . | . . . . . Highest-Rated Ally . | . . . . . Total Orders . | . . . . . Ally Attacks . | . . . . . Total Damage . | . . . . . Kills . | . . . . . Allies Corrupted . | . . . . . Allies Melted . | . . . . . Intel | -11 -10 -9 -8 -8 ------- Run | Yrd Mat Mat Mat Gar Active Infowar (turns) 761 | 64 392 305 . . Terrain 753 | 56 392 305 . . Seismic 8 | 8 . . . . Robot Analysis Total . | . . . . . Derelict Logs Recovered . | . . . . . Drone Launches . | . . . . . Drone Recoveries . | . . . . . Exploration | -11 -10 -9 -8 -8 ------------- Run | Yrd Mat Mat Mat Gar Turns Passed 1742 | 152 393 454 305 438 Spaces Moved 1767 | 105 374 680 349 259 Core 95 | 13 . . . 82 Treads . | . . . . . Legs 57 | . . . . 57 Wheels 846 | 92 374 153 107 120 Hover . | . . . . . Flight 769 | . . 527 242 . Fastest Speed 27 | 50 80 29 27 50 Average Speed 65 | 80 80 42 53 116 Slowest Speed 300 | 90 80 280 114 300 Overloaded Moves . | . . . . . Propulsion Burnouts . | . . . . . Robots Hopped 5 | . . 4 1 . Potential Cave-ins . | . . . . . Cave-ins Triggered . | . . . . . Exploration Rate (%) 33 | 4 57 46 31 28 Regions Visited 4 Branch Regions . Pre-discovered Areas . | . . . . . Known Exits Taken 1 | . . . 1 . Unknown Exits Taken 3 | 1 1 1 . . Scrap Searched . | . . . . . Spaces Dug . | . . . . . Terrain Destroyed 2 | . . . . 2 Melee . | . . . . . Projectile . | . . . . . AOE 2 | . . . . 2 Terrain Rammed . | . . . . . Walls Destroyed . | . . . . . Machines Disabled . | . . . . . Actions | -11 -10 -9 -8 -8 --------- Run | Yrd Mat Mat Mat Gar Total 2126 | 147 433 778 422 346 Wait 82 | . 28 25 27 2 Move 1755 | 104 373 672 347 259 Hop 4 | . . 3 1 . Pick Up 46 | 18 2 12 7 7 Fast Attach 7 | . 1 5 1 . Attach 34 | 7 . 9 6 12 Detach 1 | . . . 1 . Swap 14 | 2 1 4 4 3 Drop 21 | 3 4 10 4 . Fire 108 | 13 22 20 23 30 Melee 16 | . . 16 . . Ram 5 | . 2 2 1 . Kick . | . . . . . Crush . | . . . . . Escape Stasis 33 | . . . . 33 Rewire . | . . . . . Trap . | . . . . . Miscellaneous . | . . . . . Route ------- -11/Scrapyard -10/Materials (discovered 2 exits: *Mat / [*Min]) -9/Materials (discovered 3 exits: *Mat / Min x2) -8/Materials (discovered 2 exits: [*Sto] / Gar) -8/Garrison History --------- Turn | Location | Event 14 | -11/Scrapyard | Discovered new exit (range 15) 153 | -11/Scrapyard | Entered Materials 305 | -10/Materials | Build established: Mutant 333 | -10/Materials | Discovered new exit (range 7) 518 | -10/Materials | Discovered new exit (range 12) 546 | -10/Materials | Entered another Materials area 546 | -9/Materials | Evolved 2 slots: Propulsion x2 966 | -9/Materials | Discovered new exit (range 16) 999 | -9/Materials | Identified exit to Mines 1000 | -9/Materials | Entered another Materials area 1000 | -8/Materials | Evolved 2 slots: Power x1, Propulsion x1 1013 | -8/Materials | Discovered new exit (range 15) 1305 | -8/Materials | Identified exit to Garrison 1305 | -8/Materials | Entered Garrison 1321 | -8/Garrison | Triggered checkpoint 1365 | -8/Garrison | Lost 4 parts (3n1w) 1470 | -8/Garrison | Garrison Relay disabled 1470 | -8/Garrison | Triggered checkpoint 1663 | -8/Garrison | Triggered checkpoint 1663 | -8/Garrison | Triggered checkpoint 1676 | -8/Garrison | Core integrity fell below 50% 1706 | -8/Garrison | Lost 5 parts (2p1n2w) 1723 | -8/Garrison | Core integrity fell below 20% 1743 | -8/Garrison | Destroyed by S-10 Pest with Light Assault Rifle Last Messages --------------- 01699_ Acquired 42 matter. 01707_ G-47 Trooper destroyed. 01714_ C-30 ARC bursts open, deploying its payload. 01714_ S-10 Pest unfolds itself. 01715_ Imp. Ion Engine destroyed. 01716_ G-47 Trooper destroyed. 01716_ Aluminum Leg destroyed. 01719_ Shotgun destroyed. 01719_ Acquired Imp. Heat Sink. 01720_ Shotgun destroyed. 01721_ Acquired Aluminum Leg. 01727_ Acquired Lgt. Nuclear Core. Garrison Door activated. 01729_ Acquired Lgt. Nuclear Core. 01732_ System corrupted: Aluminum Leg rejected. Garrison Door activated. 01735_ Acquired Aluminum Leg. 01739_ Lgt. Nuclear Core destroyed. 01743_ Acquired 47 matter. Map ----- +----------------------------------------------------+ | ?????????????????????????????????????????????????? | | ?????????????????????????????????????????????????? | | ?????????????????????????????????????????????????? | | ?????????????????????????????????????????????????? | | ?????????????????????????????????????????????????? | | ?????????????????????????????????????????????????? | | ?????????????????????????????????????????????????? | | ?????????????????????????????????????????????????? | | ?????????????????????????????????????????????????? | | ?????????????????????????????????????????????????? | | ?????????????????????????###?????????????????????? | | ????????????????????????? #???????????????????? | | ??????????????????####### ##??????????????????? | | ?????????????????? ?? #??????????????? | | ??????????????????? ?? ?????????????? | | ??????????????????? gg% ?? ??????????????? | | ???????????????????# ## s#? #??????????????? | | ?????????????????### ## ## #??????????????? | | ?????????????????# s "?#????????????? | | ?????????????????# " #????????????? | | ?????????????????# ss #????????????? | | ?????????????????? ?????????????? | | ???????????????????# ## #? #??????????????? | | ??????????########## ## ## ########???????? | | ########??# # ??????? | | #!!!! !#??# # *@%! ^ ??????? | | #!!!! !#??# ####### [[ ??????? | | ##### ##??# #?????# ## =%!#########???????????? | | ##### ##### #?????# ##[ *%#???????????????????? | | # #?????# ^^#######???????????????????? | | # ######### #?????# #?????????????????????????? | | # #???????# #?????# #?????????????????????????? | | # ##??????# #?????# #?????????????????????????? | | [! #????### #?????# #?????????????????????????? | | %!###### #= ####### #?????????????????????????? | | ! =%%[ #?????????????????????????? | | %/ #?????????????????????????? | | #?????????????????????????? | | ##########" ###########?????????????????????????? | | ?????????## #???????# #?????????????????????????? | | ??????????# #???????# #?????????????????????????? | | ??????????# #???????# #?????????????????????????? | | ??????????# #???????# #?????????????????????????? | | ??????????# #???????# #?????????????????????????? | | ??????????# ######### #?????????????????????????? | | ??????????# ## ## #?????????????????????????? | | ??????????# ### !### #?????????????????????????? | | ??????????# " #?????????????????????????? | | ??????????# ###?????????????????????????? | | ??????????# ##! = ##???????????????????????????? | +----------------------------------------------------+ Best States ------------- Heat Dissipation 31 Energy Generation 23 Energy Capacity 300 Matter Stores 300 Matter Capacity 300 Sight Range 16 Terrain Scan Range 16 Terrain Scan Density 10 Additional Mass Support 9 Evasion (%) 64 Targeting Accuracy 5 Item Schematics ----------------- VTOL Module | -8/Materials | Scanalyzed Robot Schematics ------------------ None Fabricated ------------ Nothing Repaired ---------- Nothing Alien Tech Used ----------------- None Achievements -------------- None Challenges ------------ None Game ------ Seed SkeletonDisruptorScythe Manual? 0 Play Time 00:28:44 Cumulative 22.6 hours Start 2025.05.16 @ 13:04:38 End 2025.05.16 @ 13:32:03 Sessions 1 Manual Loads 0 Difficulty Rogue Special Mode None Game No. 45 Rogue 45 Adventurer 0 Explorer 0 Win Type - Total 0 Types 0/0/0/0/0/0/0/0/0/0 Lore% 6 Gallery% 22 Achievement% 18 Wizard Run 0 Options --------- Layout 1 ASCII 0 Keyboard 0 Movement Mouse Keybinds 0 Fullscreen 1 Font 24/Smallcaps Map View 50x35 Zoom Use 0% Tactical HUD 1 Map Filters NONE Filters NONE Steam 1 RUN: 34485f80-8837-46a5-bb2a-d76b430acfd3